fUST/lending_fUST_20260404
["ID","MTS","AMOUNT","RATE_DAILY","PERIOD"]
[419669924,1775274620569,1000.0,0.00034754,120]
[419669925,1775274622226,1000.0,0.00034754,120]
[419669933,1775274631812,-1000.0,0.00013699,2]
[419669934,1775274631822,-375.70607612,0.00018971,2]
[419669935,1775274631832,-170.786212,0.00021863,2]
[419669936,1775274631841,-300.0,0.00021927,2]
[419669937,1775274631851,-1200.0,0.00021927,2]
[419669938,1775274631860,-9757.69303692,0.00021928,2]
[419669996,1775274637975,-2924.29431298,0.00021928,2]
[419669998,1775274637985,-151.1643735,0.00021928,2]
[419670001,1775274637995,-3049.2503769,0.00021928,2]
[419670003,1775274638005,-963.96270697,0.00021928,2]
[419670532,1775274647785,-300.0,0.00021928,2]
[419670533,1775274647797,-3391.90462603,0.00021928,2]
[419670534,1775274647806,-1543.2537583,0.00021928,2]
[419670535,1775274647816,-151.4740473,0.00022402,2]
[419670537,1775274647826,-455.2608298,0.00022402,2]
[419670538,1775274647835,-324.9282386,0.00022407,2]
[419670539,1775274647844,-196.0646401,0.00022407,2]
[419670540,1775274647854,-349.49603893,0.0002251,2]
[419670541,1775274647863,-399.42404449,0.0002251,2]
[419670542,1775274647872,-270.83333333,0.00023144,2]
[419670543,1775274647881,-5236.14675861,0.00023207,2]
[419670544,1775274647890,-572.6280156,0.00023224,2]
[419670545,1775274647899,-455.3221879,0.00023229,2]
[419670546,1775274647908,-455.2608298,0.00023233,2]
[419670547,1775274647918,-455.1219555,0.00023233,2]
[419670548,1775274647927,-324.8899299,0.00023233,2]
[419670549,1775274647936,-761.4063015,0.00023288,2]
[419670550,1775274647945,-190.08372235,0.00023702,2]
[419670551,1775274647954,-623.47596944,0.00023702,2]
[419670552,1775274647964,-621.78829552,0.0002379,2]
[419670553,1775274647973,-2487.15318209,0.0002379,2]
[419670554,1775274647982,-420.0,0.00023829,2]
[419670555,1775274647991,-183.941,0.00023841,5]
[419670556,1775274648000,-694.0,0.00023941,2]
[419670557,1775274648009,-521.02,0.00024103,3]
[419670558,1775274648018,-260.51,0.00024103,3]
[419670559,1775274648028,-781.55,0.00024103,3]
[419670560,1775274648037,-500.0,0.00024112,2]
[419670561,1775274648046,-500.0,0.00024112,2]
[419670562,1775274648055,-500.0,0.00024112,2]
[419670563,1775274648064,-251.1696281,0.00024112,2]
[419670564,1775274648074,-623.61610609,0.00024112,2]
[419670565,1775274648083,-500.0,0.00024112,2]
[419670566,1775274648093,-500.0,0.00024112,2]
[419670567,1775274648103,-500.0,0.00024112,2]
[419670568,1775274648112,-500.0,0.00024112,2]
[419670569,1775274648121,-500.0,0.00024112,2]
[419670570,1775274648131,-390.57856185,0.00024112,2]
[419670571,1775274648141,-160.0,0.00024112,2]
[419670572,1775274648150,-151.0,0.00024112,2]
[419670573,1775274648160,-151.489693,0.00024112,2]
[419670574,1775274648169,-151.0,0.00024112,2]
[419670575,1775274648179,-178.086669,0.00024112,2]
[419670576,1775274648191,-151.0,0.00024112,2]
[419670577,1775274648201,-151.0,0.00024112,2]
[419670578,1775274648212,-151.0,0.00024112,2]
[419670579,1775274648222,-151.0,0.00024112,2]
[419670580,1775274648233,-152.872505,0.00024112,2]
[419670581,1775274648242,-253.10183,0.00024112,2]
[419670582,1775274648253,-253.10183,0.00024112,2]
[419670583,1775274648263,-253.10183,0.00024112,2]
[419670584,1775274648274,-253.10183,0.00024112,2]
[419670585,1775274648285,-151.0,0.00024112,2]
[419670586,1775274648294,-78168.85573507,0.00024113,2]
[419670587,1775274648306,-2885.32633232,0.00024113,2]
[419670588,1775274648317,-2191.93044,0.00024113,2]
[419670601,1775275064038,7901.03151262,0.00031,120]
[419670619,1775275290886,500.0,0.00034756,120]
[419670620,1775275291101,500.0,0.00034756,120]
[419670621,1775275291347,500.0,0.00034756,120]
[419670627,1775275291571,500.0,0.00034756,120]
[419670628,1775275291802,500.0,0.00034756,120]
[419670629,1775275292073,500.0,0.00034756,120]
[419670630,1775275292371,500.0,0.00034756,120]
[419670631,1775275292526,497.25496941,0.00034756,120]
[419670645,1775275300487,1725.0,0.00030137,120]
[419670652,1775275432504,500.0,0.00034756,120]
[419670653,1775275432630,500.550302,0.00034756,120]
[419670850,1775275831997,-500.0,0.00013561,2]
[419670851,1775275832007,-311.04317113,0.00013561,2]
[419670852,1775275832016,-1000.0,0.00013699,2]
[419670853,1775275832026,-166.0,0.000209,2]
[419670854,1775275832035,-158.0,0.000209,2]
[419670855,1775275832045,-152.0,0.000209,2]
[419670856,1775275832054,-155.0,0.000209,2]
[419670857,1775275832063,-152.0,0.000219,2]
[419670858,1775275832072,-856.1446022,0.00021924,2]
[419670859,1775275832082,-491.5622885,0.00022416,30]
[419670860,1775275832091,-160.0,0.000229,2]
[419670861,1775275832101,-160.0,0.00023,10]
[419670862,1775275832110,-541.71596762,0.00023712,2]
[419670863,1775275832120,-270.83333333,0.00023747,2]
[419670864,1775275832133,-1200.0,0.000238,2]
[419670865,1775275832142,-300.0,0.00023801,2]
[419670866,1775275832151,-205.93077166,0.00023802,3]
[419670867,1775275832162,-575.59922834,0.00023802,3]
[419670868,1775275832172,-332.46722137,0.00023802,3]
[419670869,1775275832188,-449.06277863,0.00023802,3]
[419670870,1775275832198,-935.49667137,0.00023812,2]
[419670871,1775275832208,-3672.54055,0.00023812,2]
[419670895,1775275838182,-6530.56856715,0.00023812,2]
[419670912,1775275838344,-982.07958957,0.00023812,2]
[419671199,1775275840990,-3194.64028635,0.00023812,2]
[419671493,1775275843627,-4904.92389278,0.00023812,2]
[419671495,1775275843643,-7778.12439254,0.00023812,2]
[419671498,1775275843657,-29216.04002663,0.00023812,2]
[419671500,1775275843671,-1826.03086402,0.00023812,2]
[419671503,1775275843684,-857.52287274,0.00023812,2]
[419671505,1775275843699,-427.77401337,0.00023812,2]
[419671617,1775275846236,-1779.98394287,0.00023812,2]
[419671622,1775275846553,-1022.6898492,0.00023812,2]
[419671623,1775275846607,-72870.43704202,0.00023812,2]
[419671638,1775275865597,952.0,0.00034756,120]
[419671639,1775275865909,516.0,0.00034756,120]
[419671640,1775275909598,176.85473803,0.00034756,120]
[419671683,1775276090613,237.16799812,8.219e-05,2]
[419671684,1775276091843,161.24747822,8.219e-05,2]
[419671685,1775276092980,178.70976893,8.219e-05,2]
[419671687,1775276275273,500.0,0.00032876,120]
[419671688,1775276277813,500.0,0.00032876,120]
[419671689,1775276371482,500.0,0.00032876,120]
[419671690,1775276373877,500.0,0.00032876,120]
[419671691,1775276375949,500.0,0.00032876,120]
[419671692,1775276378069,500.0,0.00032876,120]
[419671693,1775276380403,500.0,0.00032876,120]
[419671694,1775276383268,500.0,0.00032876,120]
[419671695,1775276386117,500.0,0.00032876,120]
[419671696,1775276403202,200.0,0.00032876,120]
[419671773,1775277032101,-500.82288191,0.00013699,2]
[419671775,1775277032112,-499.17711809,0.00013699,2]
[419671777,1775277032122,-183.941,0.00023238,3]
[419671779,1775277032131,-155.01471849,0.00023499,2]
[419671780,1775277032140,-588.34290816,0.00023512,2]
[419671781,1775277032149,-1117.4075891,0.00023598,2]
[419671847,1775277038320,-1095.2828373,0.000235,2]
[419672372,1775277043611,-8807.48144773,0.000235,2]
[419672374,1775277043621,-82.5924109,0.00023598,2]
[419672375,1775277043630,-300.0,0.00023599,2]
[419672377,1775277043640,-300.0,0.00023599,2]
[419672379,1775277043650,-300.0,0.00023599,2]
[419672382,1775277043661,-300.0,0.00023599,2]
[419672383,1775277043671,-232.0,0.00023599,2]
[419672386,1775277043681,-1290.03245215,0.000236,42]
[419672387,1775277043691,-6564.04365206,0.000236,8]
[419672628,1775277046822,-3829.8692539,0.000236,8]
[419672630,1775277047281,-5459.91708885,0.000236,8]
[419672631,1775277047298,-266.275,0.000236,8]
[419672729,1775277122967,1000.0,0.00013699,2]
[419672730,1775277136124,-1552.74315677,0.0001782,2]
[419672945,1775278232341,-5000.0,0.00013562,2]
[419672946,1775278232351,-1000.0,0.00013699,2]
[419672947,1775278232362,-500.0,0.000138,2]
[419672948,1775278232373,-209.45506384,0.0001762,2]
[419672949,1775278232383,-1200.0,0.00021534,2]
[419672950,1775278232394,-1000.0,0.00021535,2]
[419672951,1775278232405,-216.5829125,0.00021761,2]
[419672952,1775278232415,-247.52332857,0.00021761,2]
[419672953,1775278232425,-173.981093,0.00022384,2]
[419672954,1775278232436,-156.89114487,0.00022465,2]
[419672955,1775278232447,-386.36844569,0.00022466,2]
[419672956,1775278232457,-191.0,0.00022984,2]
[419672957,1775278232467,-300.0,0.00022984,2]
[419672958,1775278232477,-300.0,0.00022984,2]
[419672959,1775278232488,-1797.46967341,0.00022985,2]
[419672960,1775278232501,-223.6486892,0.00022985,2]
[419672961,1775278232511,-300.0,0.00023194,2]
[419672962,1775278232522,-152.3290858,0.00023247,2]
[419672963,1775278232532,-196.2850389,0.00023253,2]
[419672964,1775278232543,-196.1802245,0.00023256,2]
[419672965,1775278232554,-101.50779836,0.000234,39]
[419672966,1775278233616,-784.76262155,0.000234,39]
[419672967,1775278233629,-406.30584553,0.000234,39]
[419672968,1775278233641,-1329.00160712,0.000234,2]
[419673018,1775278238585,-1472.30902309,0.000234,2]
[419673020,1775278238595,-514.80004464,0.000234,2]
[419673022,1775278238604,-270.83333333,0.00023432,2]
[419673023,1775278238613,-500.0,0.00023473,2]
[419673025,1775278238623,-307.24257777,0.00023473,2]
[419673027,1775278238633,-500.0,0.00023473,2]
[419673030,1775278238642,-500.0,0.00023473,2]
[419673032,1775278238651,-500.0,0.00023473,2]
[419673033,1775278238661,-500.0,0.00023473,2]
[419673035,1775278238670,-500.0,0.00023473,2]
[419673037,1775278238679,-507.95876477,0.00023473,2]
[419673039,1775278238690,-361.69224261,0.00023473,2]
[419673041,1775278238699,-691.95,0.0002349,3]
[419673043,1775278238708,-195.18560294,0.00023498,2]
[419673045,1775278238717,-160.77697936,0.00023499,2]
[419673047,1775278238726,-27702.31689113,0.000235,2]
[419673050,1775278238738,-4783.18568281,0.000235,2]
[419673052,1775278238749,-35501.75816062,0.000235,2]
[419673054,1775278238760,-19142.75077144,0.000235,2]
[419673257,1775278241074,-5000.0,0.00023265,2]
[419673259,1775278241084,-181283.81309564,0.000235,2]
[419673265,1775278241131,-495.840245,0.000235,2]
[419673267,1775278241145,-1951.88971912,0.000235,2]
[419673519,1775278243536,-2601.36980434,0.000235,2]
[419673827,1775278246718,-2944.73106266,0.000235,2]
[419673856,1775278246988,-1209.79618404,0.000235,2]
[419673863,1775278247045,-7068.58019113,0.000235,2]
[419673865,1775278247057,-730.31,0.000235,2]
[419677084,1775278318144,249.54427054,0.00027452,120]
[419677157,1775278899487,-1143.96690379,0.00013062,2]
[419677308,1775279432448,-3842.31193347,0.00012575,2]
[419677309,1775279432501,-635.16775901,0.00012575,2]
[419677310,1775279432514,-522.52030752,0.00012575,2]
[419677311,1775279432523,-318.13981344,0.00012702,2]
[419677312,1775279432533,-209.45506384,0.00013462,2]
[419677313,1775279432543,-63.86634676,0.00013699,2]
[419677314,1775279432619,-936.13365324,0.00013699,2]
[419677315,1775279432629,-575.35203538,0.00014175,2]
[419677316,1775279432639,-565.55344095,0.00015,2]
[419677317,1775279432648,-386.5368352,0.00015572,3]
[419677348,1775279438823,-680.64870593,0.00015572,3]
[419677350,1775279438833,-925.62566464,0.00018181,2]
[419677596,1775279441498,-4074.37433536,0.00018181,2]
[419677598,1775279441508,-300.0,0.00018365,2]
[419677600,1775279441517,-300.0,0.00018365,2]
[419677602,1775279441526,-1837.3125182,0.00018366,3]
[419677604,1775279441536,-1000.0,0.0002,2]
[419677606,1775279441545,-420.0,0.00020031,2]
[419677608,1775279441556,-2159.58551006,0.0002116,15]
[419677610,1775279441565,-265.88448714,0.00021481,2]
[419677612,1775279441575,-303.86798531,0.00021481,2]
[419677614,1775279441584,-164.11666724,0.00021481,2]
[419677616,1775279441593,-287.0,0.00021848,2]
[419677618,1775279441602,-151.0,0.00022422,2]
[419677620,1775279441612,-474.31893331,0.0002269,2]
[419677622,1775279441621,-295.11459104,0.0002269,2]
[419677624,1775279441630,-737.0,0.0002307,2]
[419677626,1775279441639,-184.0,0.0002307,2]
[419677628,1775279441649,-440.0,0.0002307,2]
[419677630,1775279441658,-270.83333333,0.00023204,2]
[419677632,1775279441667,-151.0,0.00023244,2]
[419677634,1775279441676,-324.9815827,0.00023244,2]
[419677636,1775279441686,-287.9062525,0.00023247,2]
[419677638,1775279441697,-324.9815827,0.00023247,2]
[419677640,1775279441706,-455.3790597,0.00023247,2]
[419677642,1775279441715,-325.0256955,0.00023247,2]
[419677644,1775279441725,-455.2608298,0.00023247,2]
[419677646,1775279441734,-455.2232197,0.00023247,2]
[419677648,1775279441744,-22994.89500519,0.000234,8]
[419677650,1775279441753,-745.19019199,0.000234,26]
[419677652,1775279441762,-2521.17956718,0.000234,2]
[419677654,1775279441772,-3296.9855926,0.00023427,2]
[419677656,1775279441781,-3345.3374481,0.0002345,2]
[419677658,1775279441791,-183.94158471,0.00023473,4]
[419677660,1775279441800,-500.41066274,0.00023473,2]
[419677662,1775279441809,-269.08,0.0002349,3]
[419677664,1775279441819,-224.24,0.0002349,3]
[419677666,1775279441828,-672.73,0.0002349,3]
[419677668,1775279441836,-500.0,0.00023499,2]
[419677670,1775279441845,-500.0,0.00023499,2]
[419677673,1775279441855,-500.0,0.00023499,2]
[419677676,1775279441864,-390.95976886,0.00023499,2]
[419677679,1775279441874,-946.0,0.000235,3]
[419677682,1775279441883,-453.74884382,0.000235,3]
[419677685,1775279441892,-99.65397422,0.000235,3]
[419677893,1775279443815,-547.34602578,0.000235,3]
[419677895,1775279443828,-339.0,0.000235,3]
[419677897,1775279443839,-647.0,0.000235,3]
[419677899,1775279443849,-339.0,0.000235,3]
[419677901,1775279443860,-647.0,0.000235,3]
[419677903,1775279443870,-346.92393213,0.000235,3]
[419677905,1775279443882,-564.54823373,0.000235,3]
[419677907,1775279443893,-2150.183225,0.000235,2]
[419677909,1775279443904,-2150.183225,0.000235,2]
[419677911,1775279443914,-2150.183225,0.000235,2]
[419677913,1775279443924,-2150.183225,0.000235,2]
[419677915,1775279443934,-2150.183225,0.000235,2]
[419677917,1775279443945,-2150.183225,0.000235,2]
[419677919,1775279443954,-1864.3911167,0.000235,2]
[419677921,1775279443967,-285.7921083,0.000235,2]
[419677923,1775279443976,-2150.183225,0.000235,2]
[419677925,1775279443987,-250.120817,0.000235,2]
[419677927,1775279443997,-250.120817,0.000235,2]
[419677929,1775279444006,-250.120817,0.000235,2]
[419677931,1775279444015,-250.120817,0.000235,2]
[419677933,1775279444024,-250.120817,0.000235,2]
[419677935,1775279444034,-250.120817,0.000235,2]
[419677937,1775279444043,-250.120817,0.000235,2]
[419677939,1775279444052,-250.120817,0.000235,2]
[419677941,1775279444062,-200.0,0.000235,3]
[419677943,1775279444071,-647.0,0.000235,3]
[419677945,1775279444080,-339.0,0.000235,3]
[419677947,1775279444089,-647.0,0.000235,3]
[419677949,1775279444098,-647.0,0.000235,3]
[419677951,1775279444107,-647.0,0.000235,3]
[419677953,1775279444117,-647.0,0.000235,3]
[419677955,1775279444125,-647.0,0.000235,3]
[419677957,1775279444135,-151.0,0.000235,2]
[419677959,1775279444144,-802.88,0.000235,2]
[419677961,1775279444155,-802.88,0.000235,2]
[419677963,1775279444166,-802.88,0.000235,2]
[419677965,1775279444175,-802.88,0.000235,2]
[419677967,1775279444186,-802.88,0.000235,2]
[419677969,1775279444196,-802.88,0.000235,2]
[419677971,1775279444205,-802.88,0.000235,2]
[419677973,1775279444215,-802.88,0.000235,2]
[419677974,1775279444224,-802.88,0.000235,2]
[419677976,1775279444234,-802.88,0.000235,2]
[419677978,1775279444244,-802.88,0.000235,2]
[419677980,1775279444254,-179.73892356,0.000235,2]
[419677983,1775279444267,-623.14107644,0.000235,2]
[419677985,1775279444277,-484.85792946,0.000235,2]
[419678022,1775279446766,-318.02207054,0.000235,2]
[419678023,1775279446776,-802.88,0.000235,2]
[419678024,1775279446786,-690.27754799,0.000235,2]
[419678025,1775279447029,-854.57245201,0.000235,2]
[419678026,1775279447038,-151.0,0.000236,2]
[419678028,1775279447056,-270.83333333,0.000236,3]
[419678029,1775279447068,-151.0,0.000236,2]
[419678030,1775279447078,-1270.6664089,0.00023633,2]
[419678031,1775279447087,-1192.137067,0.000238,2]
[419678032,1775279447097,-151.0,0.00023812,2]
[419678033,1775279447107,-223.505198,0.00023812,2]
[419678034,1775279447117,-151.0,0.00023812,2]
[419678035,1775279447126,-323.58452529,0.00024112,2]
[419678036,1775279447139,-1081.41547471,0.00024112,2]
[419678037,1775279447149,-644.0,0.00024112,2]
[419678038,1775279447160,-151.0,0.00024112,2]
[419678039,1775279447169,-2150.183225,0.00024112,2]
[419678040,1775279447180,-2150.183225,0.00024112,2]
[419678041,1775279447190,-2150.183225,0.00024112,2]
[419678042,1775279447200,-2150.183225,0.00024112,2]
[419678043,1775279447218,-250.120817,0.00024112,2]
[419678044,1775279447228,-250.120817,0.00024112,2]
[419678045,1775279447239,-250.120817,0.00024112,2]
[419678046,1775279447249,-250.120817,0.00024112,2]
[419678047,1775279447260,-151.0,0.00024112,2]
[419678048,1775279447271,-3014.273031,0.00024172,2]
[419678049,1775279447281,-789.0,0.000243,2]
[419678050,1775279447292,-600.0,0.00024389,10]
[419678051,1775279447303,-450.45003906,0.00024464,2]
[419678052,1775279447312,-151.0,0.00024658,2]
[419678053,1775279447321,-151.0,0.00024658,2]
[419678054,1775279447331,-151.0,0.00024658,2]
[419678055,1775279447340,-151.0,0.00024658,2]
[419678056,1775279447350,-151.0,0.00024658,2]
[419678057,1775279447359,-151.0,0.00024658,2]
[419678058,1775279447369,-151.0,0.00024658,2]
[419678059,1775279447379,-151.0,0.00024658,2]
[419678060,1775279447388,-207.522802,0.00024658,2]
[419678061,1775279447398,-183.74128878,0.00024658,2]
[419678177,1775279872707,163.73,9e-05,2]
[419678194,1775280241402,500.0,0.00034757,120]
[419678195,1775280241614,500.560314,0.00034757,120]
[419678288,1775280632623,-269.08724583,0.00012575,2]
[419678289,1775280632679,-1966.11974943,0.00012575,2]
[419678290,1775280632733,-479.87828083,0.00012575,2]
[419678291,1775280632743,-300.0,0.00012701,2]
[419678292,1775280632752,-300.0,0.00012701,2]
[419678293,1775280632761,-83.46922818,0.00012701,2]
[419678411,1775280638988,-216.53077182,0.00012701,2]
[419678413,1775280638999,-300.0,0.00012701,2]
[419678415,1775280639010,-1200.0,0.00012701,2]
[419678417,1775280639020,-209.45506384,0.00012702,2]
[419678419,1775280639031,-2715.08527609,0.00012702,2]
[419678421,1775280639041,-1000.0,0.00013699,2]
[419678423,1775280639052,-2715.08527609,0.00013699,2]
[419678425,1775280639063,-420.0,0.00013933,2]
[419678428,1775280639074,-263.8759838,0.0001903,2]
[419678430,1775280639085,-2715.08527609,0.0001923,30]
[419678432,1775280639095,-739.38327866,0.00019614,30]
[419678670,1775280641633,-1975.70199743,0.00019614,30]
[419678672,1775280641643,-502.82087539,0.00022581,2]
[419678674,1775280641653,-2269.06161048,0.00023029,2]
[419678676,1775280641664,-2973.6979,0.00023073,2]
[419678678,1775280641674,-503.36463315,0.00023073,2]
[419678680,1775280641685,-500.0,0.00023073,2]
[419678682,1775280641695,-500.0,0.00023073,2]
[419678685,1775280641706,-500.0,0.00023073,2]
[419678687,1775280641716,-500.0,0.00023073,2]
[419678689,1775280641727,-448.48,0.0002309,3]
[419678691,1775280641737,-500.0,0.00023099,2]
[419678693,1775280641747,-500.0,0.00023099,2]
[419678695,1775280641758,-309.33235898,0.00023099,2]
[419678697,1775280641768,-500.0,0.00023099,2]
[419678700,1775280641779,-500.0,0.00023099,2]
[419678702,1775280641790,-500.0,0.00023099,2]
[419678704,1775280641800,-500.0,0.00023099,2]
[419678706,1775280641811,-500.0,0.00023099,2]
[419678708,1775280641822,-500.0,0.00023099,2]
[419678710,1775280641833,-500.0,0.00023099,2]
[419678712,1775280641844,-500.0,0.00023099,2]
[419678741,1775280642003,-157.49231921,0.00023099,2]
[419678744,1775280642014,-507.40219575,0.00023099,2]
[419678748,1775280642024,-567.06046068,0.00023099,2]
[419678751,1775280642034,-500.0,0.00023099,2]
[419678754,1775280642043,-500.0,0.00023099,2]
[419678757,1775280642053,-611.02440432,0.00023099,2]
[419678759,1775280642066,-536.93255279,0.00023099,2]
[419678761,1775280642075,-6700.04895226,0.000231,2]
[419679213,1775280647180,-10714.83333333,0.000231,2]
[419679221,1775280647234,-5000.0,0.000231,2]
[419680252,1775280657709,500.0,0.00034757,120]
[419680279,1775280657971,500.0,0.00034757,120]
[419680304,1775280658200,500.0,0.00034757,120]
[419680328,1775280658432,500.0,0.00034757,120]
[419680351,1775280658656,500.0,0.00034757,120]
[419680377,1775280658900,500.0,0.00034757,120]
[419680402,1775280659135,500.0,0.00034757,120]
[419680416,1775280659360,500.0,0.00034757,120]
[419680426,1775280659594,500.0,0.00034757,120]
[419680451,1775280659821,500.0,0.00034757,120]
[419680477,1775280660057,500.0,0.00034757,120]
[419680503,1775280660298,500.0,0.00034757,120]
[419680531,1775280660546,500.0,0.00034757,120]
[419680558,1775280660792,500.0,0.00034757,120]
[419680584,1775280661024,500.0,0.00034757,120]
[419680609,1775280661248,498.512365,0.00034757,120]
[419684317,1775280699783,-1000.0,0.00013699,2]
[419685338,1775280780882,584.598,0.00032876,120]
[419685349,1775281280831,140000.0,0.00032876,120]
[419685350,1775281332407,600.0,0.0003287,120]
[419685359,1775281692799,160.0,9.001e-05,2]
[419685373,1775281831836,-2367.0837918,0.00013562,2]
[419685376,1775281831848,-2620.63572,0.00013562,2]
[419685578,1775281838254,-12.2804882,0.00013562,2]
[419685580,1775281838264,-1000.0,0.00013699,2]
[419685582,1775281838274,-164.1472472,0.00020492,2]
[419685584,1775281838283,-913.0002246,0.00020492,2]
[419685586,1775281838292,-1062.3515102,0.000219,2]
[419685588,1775281838302,-176.24218744,0.00021972,2]
[419685595,1775281838360,-15.12900846,0.00021972,2]
[419685597,1775281838370,-455.0605974,0.00022425,2]
[419685599,1775281838380,-187.26453899,0.0002254,2]
[419685601,1775281838390,-155.417,0.0002254,2]
[419685603,1775281838400,-566.53265128,0.00022799,2]
[419685605,1775281838410,-500.0,0.00022799,2]
[419685607,1775281838420,-500.0,0.00022799,2]
[419685609,1775281838430,-500.0,0.00022799,2]
[419685611,1775281838440,-500.0,0.00022799,2]
[419685613,1775281838449,-591.33163926,0.00022799,2]
[419685615,1775281838459,-500.0,0.00022799,2]
[419685617,1775281838468,-500.0,0.00022799,2]
[419685619,1775281838478,-500.0,0.00022799,2]
[419685621,1775281838487,-22794.2313191,0.000228,2]
[419685624,1775281838499,-1437.21047514,0.000228,2]
[419685627,1775281838510,-29197.58973837,0.000228,2]
[419685665,1775281840891,-5339.53196822,0.000228,2]
[419685666,1775281840902,-1186.96651919,0.000228,2]
[419685667,1775281840914,-2234.07231819,0.000228,2]
[419685685,1775281849176,-41507.41800985,0.000228,2]
[419685686,1775281849187,-288.59969744,0.000228,2]
[419685687,1775281849196,-300.0,0.000228,4]
[419685688,1775281849206,-405777.32892932,0.000228,2]
[419685689,1775281849216,-2042.15544936,0.00022872,2]
[419685690,1775281849226,-500.0,0.00022873,2]
[419685691,1775281849235,-538.17,0.0002289,3]
[419685692,1775281849245,-269.09,0.0002289,3]
[419685693,1775281849254,-807.28,0.0002289,3]
[419685694,1775281849264,-693.14,0.000229,2]
[419685695,1775281849276,-693.14,0.000229,2]
[419685696,1775281849290,-693.14,0.000229,2]
[419685697,1775281849304,-693.14,0.000229,2]
[419685698,1775281849318,-693.14,0.000229,2]
[419685699,1775281849329,-693.14,0.000229,2]
[419685700,1775281849342,-693.14,0.000229,2]
[419685701,1775281849355,-693.14,0.000229,2]
[419685702,1775281849368,-693.14,0.000229,2]
[419685703,1775281849380,-693.14,0.000229,2]
[419685704,1775281849393,-1247.68,0.000229,2]
[419685705,1775281849406,-200.0,0.00022972,2]
[419685706,1775281849419,-644.22725504,0.00022973,2]
[419685707,1775281849432,-7107.05294558,0.00023,2]
[419685708,1775281849445,-6786.92715407,0.00023,2]
[419685709,1775281849458,-151.0,0.00023,2]
[419685710,1775281849471,-217.859818,0.00023,2]
[419685711,1775281849483,-151.0,0.00023,2]
[419685712,1775281849496,-217.859818,0.00023,2]
[419685713,1775281849507,-251.864163,0.00023,2]
[419685714,1775281849518,-217.859818,0.00023,2]
[419685715,1775281849531,-217.859818,0.00023,2]
[419685716,1775281849544,-187.78006526,0.00023104,2]
[419685717,1775281849558,-487.78317734,0.00023104,2]
[419685718,1775281849573,-626.1415792,0.00023104,2]
[419685719,1775281849586,-171.11376468,0.00023104,2]
[419685720,1775281849600,-2487.15318209,0.00023104,2]
[419685721,1775281849612,-270.83333333,0.0002317,2]
[419685722,1775281849625,-175.00887381,0.00023225,2]
[419685723,1775281849636,-3830.0,0.000234,8]
[419685724,1775281849646,-151.0,0.000234,2]
[419685725,1775281849656,-151.0,0.000234,2]
[419685726,1775281849666,-155.10886,0.000234,2]
[419685727,1775281849680,-151.0,0.000234,2]
[419685728,1775281849692,-151.0,0.000234,2]
[419685729,1775281849704,-151.0,0.000234,2]
[419685730,1775281849717,-151.0,0.000234,2]
[419685731,1775281849731,-151.0,0.000234,2]
[419685732,1775281849745,-860.07329,0.000234,2]
[419685733,1775281849758,-860.07329,0.000234,2]
[419685734,1775281849770,-860.07329,0.000234,2]
[419685735,1775281849781,-860.07329,0.000234,2]
[419685736,1775281849794,-151.0,0.000234,2]
[419685737,1775281849807,-151.0,0.000234,2]
[419685738,1775281849820,-151.0,0.000234,2]
[419685739,1775281849832,-151.0,0.000234,2]